Cogmind - Beta 13 @@@ ROGUE MODE // 2024.04.13 @ 14:01:48 Player: robb Result: Destroyed by X-57 Shotgunner with Shotgun Performance ------------- Evolutions (3) 1500 Regions Visited (7) 1400 Robots Destroyed (23) 115 Value Destroyed (934) 934 Prototype IDs (2) 40 Alien Tech Used (0) 0 Bonus (800) 800 TOTAL SCORE: 4789 Bonus ------- Entered DSFs 500 Aligned with FarCom 300 Cogmind --------- Core Integrity 0/700 Matter 48/300 Energy 75/100 System Corruption 18% Temperature Cool (0) Movement Core (50) Location -7/DSF Parts ------- > --- POWER (2) -------- (None) > --- PROPULSION (4) --- (None) > --- UTILITY (5) ------ (None) > --- WEAPON (2) ------- Longsword +1 > --- INVENTORY (5) ---- Light Nuclear Core Improved Heat Sink Flak Gun Missile Launcher Hammer Peak State ------------ > --- POWER ------------ Reinforced Ion Engine Light Deuterium Engine > --- PROPULSION ------- Titanium Leg Improved Carbon-fiber Leg Improved Carbon-fiber Leg Improved Carbon-fiber Leg > --- UTILITY ---------- Medium Storage Unit Hardened Medium Armor Plating Hacking Suite Hacking Suite System Shield > --- WEAPON ----------- Flak Gun Flak Gun > --- INVENTORY -------- Light Nuclear Core Titanium Leg Improved Heat Sink Improved Terrain Scanner Missile Launcher Missile Launcher Missile Launcher Hammer Katana Longsword +1 [Rating: 44] Favorites ----------- Power Light Nuclear Core Engine Reinforced Ion Engine Power Core Light Nuclear Core Propulsion Light Treads Treads Light Treads Leg Carbon-fiber Leg Flight Unit Improved Flight Unit Utility Medium Storage Unit Device Improved Heat Sink Storage Medium Storage Unit Hackware Hacking Suite Protection Light Armor Plating Weapon Flak Gun Energy Gun Particle Gun Ballistic Gun Flak Gun Launcher Grenade Launcher Impact Weapon Hammer Slashing Weapon Longsword +1 Build | -11 -10 -10 -10 -9 -8 -7 -7 ------- Run | Yrd Mat Min Exi Min Mat Fac DSF Slots Evolved 6 | . . . . . 4 2 . Power 1 | . . . . . 1 . . Propulsion 2 | . . . . . 2 . . Utility 3 | . . . . . 1 2 . Weapon . | . . . . . . . . Parts Attached 66 | 7 10 1 1 8 21 . 18 Power 6 | 1 2 . . 1 2 . . Engine 3 | 1 . . . 1 1 . . Core 3 | . 2 . . . 1 . . Reactor . | . . . . . . . . Propulsion 22 | 2 3 . . 2 8 . 7 Treads 8 | 2 3 . . 2 1 . . Leg 13 | . . . . . 6 . 7 Wheel . | . . . . . . . . Hover . | . . . . . . . . Flight 1 | . . . . . 1 . . Utility 15 | 1 2 1 . 1 7 . 3 Device 5 | . . 1 . . 3 . 1 Storage 2 | 1 1 . . . . . . Processor . | . . . . . . . . Hackware 3 | . . . . . 1 . 2 Protection 5 | . 1 . . 1 3 . . Artifact . | . . . . . . . . Weapon 23 | 3 3 . 1 4 4 . 8 Energy Gun 3 | 2 . . . 1 . . . Energy Cannon . | . . . . . . . . Ballistic Gun 10 | 1 2 . . 1 3 . 3 Ballistic Cannon . | . . . . . . . . Launcher 5 | . 1 . . 1 . . 3 Special Weapon . | . . . . . . . . Impact Weapon 1 | . . . . 1 . . . Slashing Weapon 4 | . . . 1 . 1 . 2 Piercing Weapon . | . . . . . . . . Special Melee Weapon . | . . . . . . . . Unidentified Prototypes 2 | . . . 1 . 1 . . Parts Lost 20 | . 1 . . 5 1 . 13 Power 3 | . . . . 1 . . 2 Propulsion 6 | . . . . 2 . . 4 Utility 8 | . 1 . . 1 1 . 5 Weapon 3 | . . . . 1 . . 2 Highest Loss Streak 13 | . 1 . . 5 1 . 13 To Critical Strikes 1 | . . . . . . . 1 Average Slot Usage (%) 93 | . 93 91 100 96 91 . 95 Engine 6 | . 1 . . 11 9 . 14 Core 8 | . 11 14 14 1 8 . . Treads 18 | . 27 28 28 26 6 . . Leg 9 | . . . . . 22 . 29 Device 4 | . . 6 14 2 6 . . Storage 11 | . 14 14 14 14 9 . 7 Hackware 3 | . . . . . 5 . 20 Protection 6 | . 9 . . 11 3 . 6 Ballistic Gun 18 | . 26 28 19 9 17 . 8 Launcher 1 | . . . . 4 . . 5 Slashing Weapon 1 | . . . 8 5 . . . Naked Turns . | . . . . . . . . Heaviest Build 45 | 14 21 19 21 28 41 41 45 Greatest Support 71 | 40 40 40 40 40 62 62 71 Greatest Overweight (x) 6 | . 6 . . . 2 . . Average Overweight (x) . | . . . . . . . . Largest Inventory Capacity 10 | 8 10 10 10 10 10 10 10 Average Capacity 9 | 6 8 10 10 10 10 10 9 Most Carried 10 | 5 10 9 9 10 10 10 10 Average Carried 8 | 2 7 8 8 9 9 10 9 Final Capacity 10 | 8 10 10 10 10 10 10 5 Final Carried 10 | 2 8 8 9 10 10 10 5 Class Distribution -------------------- 90% | Mutant 6% | Hacker-Mutant Dominant Class ---------------- Mutant | -10/Materials Mutant | -10/Mines Mutant | -10/Exiles Mutant | -9/Mines Mutant | -8/Materials Mutant | -7/Factory Hacker-Mutant | -7/DSF Resources | -11 -10 -10 -10 -9 -8 -7 -7 ----------- Run | Yrd Mat Min Exi Min Mat Fac DSF Matter Collected 1295 | 195 395 19 . 223 456 . 7 Remotely . | . . . . . . . . Salvage Created 872 | . 395 . . 136 316 . 25 Parts 44 | . 23 . . 6 13 . 2 Haulers Intercepted . | . . . . . . . . Recyclers Shooed . | . . . . . . . . Parts Field Recycled . | . . . . . . . . Retrieved Matter . | . . . . . . . . Parts Self-Destructed . | . . . . . . . . Prevented . | . . . . . . . . Kills | -11 -10 -10 -10 -9 -8 -7 -7 ------- Run | Yrd Mat Min Exi Min Mat Fac DSF Combat Hostiles Destroyed 22 | . 9 . . 3 9 . 1 Melee 2 | . . . . 2 . . . Guns 19 | . 9 . . 1 9 . . AOE 1 | . . . . . . . 1 Classes Destroyed 5 | . 1 . . 1 2 . 1 Operator 1 | . . . . . 1 . . Grunt 17 | . 9 . . 2 6 . . Brawler 2 | . . . . 1 1 . . Sentry 2 | . . . . . 2 . . Heavy 1 | . . . . . . . 1 Best Kill Streak 3 | . 3 . . 2 3 . 1 Combat Bots Only 3 | . 3 . . 2 3 . 1 Max Kills in Single Turn 1 | . 1 . . 1 1 . 1 Gunslinging . | . . . . . . . . Exploded 1 | . . . . . . . 1 Melee 1 | . . . . 1 . . . Uniques/NPCs Destroyed . | . . . . . . . . Combat | -11 -10 -10 -10 -9 -8 -7 -7 -------- Run | Yrd Mat Min Exi Min Mat Fac DSF Hostile Shots Fired 313 | . 43 . . 35 33 . 202 Missed 90 | . 9 . . 5 5 . 71 Damage Taken 3408 | . 413 . . 457 434 . 2104 Core 895 | . 45 . . 77 64 . 709 Absorbed by Shields . | . . . . . . . . Redirected to Shielding 13 | . . . . . 13 . . Core Remaining (%) 79 | 100 . . . 51 88 . . Volleys Fired 72 | . 35 . . 7 26 . 4 Largest 2 | . 2 . . 1 2 . 2 Hottest 72 | . 40 . . 20 56 . 72 Shots Fired 136 | . 69 . . 7 52 . 8 Gun 128 | . 69 . . 7 52 . . Cannon . | . . . . . . . . Launcher 8 | . . . . . . . 8 Special . | . . . . . . . . Kinetic 128 | . 69 . . 7 52 . . Thermal . | . . . . . . . . Explosive 8 | . . . . . . . 8 Electromagnetic . | . . . . . . . . Robot Hit Streak 13 | . 9 . . 13 9 . 4 Robot Miss Streak 7 | . 3 . . 1 7 . 1 Penetration Max . | . . . . . . . . Secondary Targets . | . . . . . . . . Shots Hit Robots 124 | . 47 . . 19 45 . 13 Core Hits 95 | . 22 . . 5 56 . 12 Critical Kills . | . . . . . . . . Critical Parts Destroyed . | . . . . . . . . Critical Strikes 5 | . . . . 3 . . 2 Sever 5 | . . . . 3 . . 2 Melee Attacks 21 | . . . . 14 . . 7 Impact . | . . . . . . . . Slashing 21 | . . . . 14 . . 7 Piercing . | . . . . . . . . Sneak Attacks . | . . . . . . . . Combat Hostiles . | . . . . . . . . Follow-up Attacks . | . . . . . . . . Damage Inflicted 2670 | . 496 . . 599 751 . 824 Guns 1309 | . 496 . . 62 751 . . Cannons . | . . . . . . . . Explosions 618 | . . . . . . . 618 Melee 743 | . . . . 537 . . 206 Ramming . | . . . . . . . . Kinetic 1309 | . 496 . . 62 751 . . Thermal . | . . . . . . . . Explosive 618 | . . . . . . . 618 Electromagnetic . | . . . . . . . . Impact . | . . . . . . . . Slashing 743 | . . . . 537 . . 206 Piercing . | . . . . . . . . Highest Corruption 18 | . 3 3 3 9 . . 18 Average Corruption 4 | . 2 3 3 8 . . 9 Corruption Purged . | . . . . . . . . Corruption Blocked . | . . . . . . . . Effects 52 | . 20 4 7 20 . . 1 Message Errors 15 | . 7 . 3 4 . . 1 Matter Fused 15 | . 6 4 1 4 . . . Heat Flow Errors 6 | . 1 . 1 4 . . . Energy Discharges 5 | . 3 . 1 1 . . . Data Loss (minor) 7 | . 1 . 1 5 . . . Data Loss (major) 1 | . 1 . . . . . . Misfires 1 | . . . . 1 . . . Weapon Failures 2 | . 1 . . 1 . . . Overload Shots . | . . . . . . . . Overflow Damage 31 | . . . . 31 . . . Projectiles . | . . . . . . . . Explosions . | . . . . . . . . Melee 31 | . . . . 31 . . . Knockbacks . | . . . . . . . . Impact . | . . . . . . . . Kinetic . | . . . . . . . . Secondary . | . . . . . . . . Self-Inflicted Damage . | . . . . . . . . Shots . | . . . . . . . . Rammed . | . . . . . . . . Targets Rammed . | . . . . . . . . Kicked . | . . . . . . . . Crushed . | . . . . . . . . Highest Temperature 172 | . 172 . 134 168 159 . 11 Average Temperature 55 | . 33 . 75 66 91 . 11 Received Heat Transfer 1011 | . 231 . . 132 207 . 441 Siege Activations . | . . . . . . . . Robots Corrupted . | . . . . . . . . Combat Hostiles . | . . . . . . . . Parts Fried . | . . . . . . . . Impact Corruptions . | . . . . . . . . Robots Melted . | . . . . . . . . Combat Hostiles . | . . . . . . . . Parts Melted . | . . . . . . . . Heat Transferred . | . . . . . . . . Parts Sabotaged . | . . . . . . . . Parts Stolen . | . . . . . . . . Parts Stripped . | . . . . . . . . Power Chain Reactions . | . . . . . . . . Alert | -11 -10 -10 -10 -9 -8 -7 -7 ------- Run | Yrd Mat Min Exi Min Mat Fac DSF Peak Influence 184 | . 184 27 . 40 145 22 67 Initial 27 | . . 27 . . . 22 15 Average 47 | . 75 27 . 18 41 22 52 Maximum Alert Level . | . . . . . . . . Low Security (%) 100 | 100 100 100 . 100 100 100 100 Level 1 . | . . . . . . . . Level 2 . | . . . . . . . . Level 3 . | . . . . . . . . Level 4 . | . . . . . . . . Level 5 . | . . . . . . . . High Security . | . . . . . . . . Max Security . | . . . . . . . . Squads Dispatched 5 | . 1 . . . 2 . 2 Investigation 1 | . . . . . 1 . . Extermination . | . . . . . . . . Reinforcement 4 | . 1 . . . 1 . 2 Assault . | . . . . . . . . Garrison . | . . . . . . . . Intercept . | . . . . . . . . Searches Triggered . | . . . . . . . . Construction Impeded . | . . . . . . . . Haulers Reinforced . | . . . . . . . . Active Scanning Responses . | . . . . . . . . Cargo Convoy Interrupts . | . . . . . . . . Stealth | -11 -10 -10 -10 -9 -8 -7 -7 --------- Run | Yrd Mat Min Exi Min Mat Fac DSF Distress Signals 5 | . 3 . . . 2 . . Communications Jammed . | . . . . . . . . Distress Signals . | . . . . . . . . Times Spotted 55 | . 22 . . 3 13 . 17 Peak Tracking Total 13 | . 4 . . 3 3 . 13 Tactical Retreats 5 | . 2 . . . 2 . 1 Traps | -11 -10 -10 -10 -9 -8 -7 -7 ------- Run | Yrd Mat Min Exi Min Mat Fac DSF Traps Triggered 3 | . 3 . . . . . . Indirectly . | . . . . . . . . Trap Hack Attempts . | . . . . . . . . Triggered . | . . . . . . . . Disarmed . | . . . . . . . . Reprogrammed . | . . . . . . . . Reused . | . . . . . . . . Traps Extracted . | . . . . . . . . Installed . | . . . . . . . . Triggered . | . . . . . . . . Machines | -11 -10 -10 -10 -9 -8 -7 -7 ---------- Run | Yrd Mat Min Exi Min Mat Fac DSF Machines Disabled . | . . . . . . . . Max in Single Turn . | . . . . . . . . Machines Repaired . | . . . . . . . . Machines Dismantled . | . . . . . . . . Machines Sabotaged . | . . . . . . . . Overloaded Fab Kills . | . . . . . . . . Hacking | -11 -10 -10 -10 -9 -8 -7 -7 --------- Run | Yrd Mat Min Exi Min Mat Fac DSF Machines Accessed 12 | . 6 . . . 5 1 . Terminals 9 | . 4 . . . 4 1 . Fabricators . | . . . . . . . . Repair Stations 1 | . . . . . 1 . . Recycling Units 2 | . 2 . . . . . . Scanalyzers . | . . . . . . . . Garrison Access . | . . . . . . . . Total Hacks 31 | . 19 . . . 10 2 . Successful 12 | . 10 . . . 1 1 . Failed 19 | . 9 . . . 9 1 . Catastrophic 3 | . 2 . . . 1 . . Database Lockouts . | . . . . . . . . Manual 11 | . 3 . 1 . 7 . . Terminals 27 | . 16 . . . 9 2 . Fabricators . | . . . . . . . . Repair Stations 1 | . . . . . 1 . . Recycling Units 3 | . 3 . . . . . . Scanalyzers . | . . . . . . . . Garrison Access . | . . . . . . . . Terminal Hacks 9 | . 7 . . . 1 1 . Record 4 | . 4 . . . . . . Open DSF 1 | . . . . . . 1 . Emergency Access Points 1 | . 1 . . . . . . Terminal Index 1 | . . . . . 1 . . Reinforcement Status 1 | . 1 . . . . . . Registered Components 1 | . 1 . . . . . . Fabricator Hacks . | . . . . . . . . Repair Station Hacks . | . . . . . . . . Recycling Unit Hacks 3 | . 3 . . . . . . Report Inventory 2 | . 2 . . . . . . Retrieve Components 1 | . 1 . . . . . . Scanalyzer . | . . . . . . . . Garrison Access Hacks . | . . . . . . . . Unauthorized Hacks . | . . . . . . . . Terminals . | . . . . . . . . Fabricators . | . . . . . . . . Repair Stations . | . . . . . . . . Recycling Units . | . . . . . . . . Scanalyzers . | . . . . . . . . Garrison Access . | . . . . . . . . Data Cores Recovered . | . . . . . . . . Used . | . . . . . . . . Hacking Detections 8 | . 3 . . . 5 . . Full Trace Events 3 | . 2 . . . 1 . . Feedback Events 1 | . 1 . . . . . . Corruption 1 | . 1 . . . . . . Feedback Blocked . | . . . . . . . . Robot Schematics Acquired . | . . . . . . . . Robots Built . | . . . . . . . . Authchips . | . . . . . . . . Time . | . . . . . . . . Total Robot Build Rating . | . . . . . . . . Part Schematics Acquired . | . . . . . . . . Parts Built . | . . . . . . . . Authchips . | . . . . . . . . Time . | . . . . . . . . Total Part Build Rating . | . . . . . . . . Parts Repaired . | . . . . . . . . Time . | . . . . . . . . Parts Recycled . | . . . . . . . . Recycled Matter . | . . . . . . . . Retrieved Matter . | . . . . . . . . Retrieved Components 2 | . 2 . . . . . . Parts Scanalyzed . | . . . . . . . . Part Schematics Acquired . | . . . . . . . . Parts Damaged . | . . . . . . . . Bothacking | -11 -10 -10 -10 -9 -8 -7 -7 ------------ Run | Yrd Mat Min Exi Min Mat Fac DSF Used RIF Installer . | . . . . . . . . Robots Hacked . | . . . . . . . . Non-combat . | . . . . . . . . Combat . | . . . . . . . . Robot Hacks Applied . | . . . . . . . . Relay Couplers Released . | . . . . . . . . Fabnet Peak Effective % . | . . . . . . . . Robots Rewired . | . . . . . . . . Allies Hacked . | . . . . . . . . Hacks Repelled . | . . . . . . . . Allies | -11 -10 -10 -10 -9 -8 -7 -7 -------- Run | Yrd Mat Min Exi Min Mat Fac DSF Total Allies 1 | . . 1 . . . . . Largest Group 1 | . . 1 1 . . . . Highest-Rated Group 31 | . . 31 31 . . . . Highest-Rated Ally 31 | . . 31 31 . . . . Total Orders . | . . . . . . . . Ally Attacks . | . . . . . . . . Total Damage . | . . . . . . . . Kills . | . . . . . . . . Allies Corrupted . | . . . . . . . . Allies Melted . | . . . . . . . . Intel | -11 -10 -10 -10 -9 -8 -7 -7 ------- Run | Yrd Mat Min Exi Min Mat Fac DSF Robot Analysis Total . | . . . . . . . . Derelict Logs Recovered 2 | . . 1 . 1 . . . Drone Launches . | . . . . . . . . Drone Recoveries . | . . . . . . . . Exploration | -11 -10 -10 -10 -9 -8 -7 -7 ------------- Run | Yrd Mat Min Exi Min Mat Fac DSF Turns Passed 4746 | 52 1333 242 529 680 1556 4 350 Spaces Moved 2269 | 35 652 148 329 328 674 3 100 Core 20 | 16 4 . . . . . . Treads 1691 | 19 648 148 329 328 219 . . Legs 558 | . . . . . 455 3 100 Wheels . | . . . . . . . . Hover . | . . . . . . . . Flight . | . . . . . . . . Fastest Speed 50 | 50 160 160 160 160 120 122 122 Average Speed 150 | 109 161 160 160 160 134 122 126 Slowest Speed 350 | 160 350 160 160 160 260 122 130 Overloaded Moves . | . . . . . . . . Propulsion Burnouts . | . . . . . . . . Robots Hopped . | . . . . . . . . Cave-ins Triggered . | . . . . . . . . Exploration Rate (%) 47 | 3 87 40 60 51 36 . 53 Regions Visited 7 Branch Regions 3 Pre-discovered Areas 1 | . . 1 . . . . . Known Exits Taken 2 | . . . . . 1 1 . Unknown Exits Taken 5 | 1 1 1 1 1 . . . Scrap Searched 2 | . . 1 . 1 . . . Spaces Dug . | . . . . . . . . Terrain Destroyed 17 | . . . . . . . 17 Melee . | . . . . . . . . Projectile . | . . . . . . . . AOE 17 | . . . . . . . 17 Terrain Rammed . | . . . . . . . . Walls Destroyed . | . . . . . . . . Machines Disabled . | . . . . . . . . Actions | -11 -10 -10 -10 -9 -8 -7 -7 --------- Run | Yrd Mat Min Exi Min Mat Fac DSF Total 3451 | 49 872 154 332 461 1272 3 308 Wait 940 | . 154 3 . 98 520 . 165 Move 2263 | 34 651 147 328 327 673 3 100 Hop . | . . . . . . . . Pick Up 49 | 7 16 2 1 6 13 . 4 Fast Attach 15 | 1 1 . . 1 10 . 2 Attach 24 | 6 5 1 1 4 3 . 4 Detach 3 | 1 . . 1 . . . 1 Swap 27 | . 4 . . 3 8 . 12 Drop 36 | . 6 1 . 1 19 . 9 Fire 72 | . 35 . . 7 26 . 4 Melee 21 | . . . . 14 . . 7 Ram . | . . . . . . . . Kick . | . . . . . . . . Crush . | . . . . . . . . Escape Stasis . | . . . . . . . . Rewire 1 | . . . 1 . . . . Trap . | . . . . . . . . Miscellaneous . | . . . . . . . . Route ------- -11/Scrapyard -10/Materials (discovered 3 exits: [*Mat x2] / [*Min]) -10/Mines (discovered 2 exits: [*Mat] / *Exi) -10/Exiles -9/Mines -8/Materials -7/Factory -7/DSF History --------- Turn | Location | Event 5 | -11/Scrapyard | Discovered new exit (range 14) 53 | -11/Scrapyard | Entered Materials 314 | -10/Materials | Build established: Mutant 408 | -10/Materials | Discovered new exit (range 15) 615 | -10/Materials | Discovered new exit (range 15) 1155 | -10/Materials | Discovered new exit (range 7) 1386 | -10/Materials | Entered Mines 1389 | -10/Mines | Received a Mining Laser from a helpful Derelict 1401 | -10/Mines | Met a Derelict bent on vengeance 1465 | -10/Mines | Learned location of Storage (-9) 1532 | -10/Mines | Discovered new exit (range 7) 1617 | -10/Mines | Deemed a non-threat by the Exiles lab entrance 1619 | -10/Mines | Discovered new exit (range 5) 1628 | -10/Mines | Entered Exiles 1628 | -10/Exiles | Accompanied by 1 ally 1673 | -10/Exiles | Met 8R-AWN 1716 | -10/Exiles | Met EX-HEX 1767 | -10/Exiles | Met EX-BIN 1788 | -10/Exiles | Aligned with FarCom system 1789 | -10/Exiles | Given EX-Vault access code 1826 | -10/Exiles | Opened EX-Vault 1836 | -10/Exiles | Found Prototype Slashing Weapon 1837 | -10/Exiles | Identified Longsword +1 1872 | -10/Exiles | Warned to stay clear of 0b10 Research branches 1923 | -10/Exiles | Met EX-DEC 2139 | -10/Exiles | Discovered new exit (range 14) 2157 | -10/Exiles | Left Exiles lab with Longsword +1 2157 | -10/Exiles | Entered Mines 2293 | -9/Mines | Lost 5 parts (1p2n1u1w) 2767 | -9/Mines | Discovered new exit (range 15) 2837 | -9/Mines | Entered Materials 2837 | -8/Materials | Evolved 4 slots: Power x1, Propulsion x2, Utility x1 2838 | -8/Materials | Identified exit to Factory 4393 | -8/Materials | Entered Factory 4393 | -7/Factory | Evolved 2 slots: Utility x2 4397 | -7/Factory | Identified exit to DSF 4397 | -7/Factory | Entered DSF 4452 | -7/DSF | Additional patrols routed to DSF 4721 | -7/DSF | Build established: Hacker-Mutant 4738 | -7/DSF | System corruption reached 10% 4741 | -7/DSF | Core integrity fell below 50% 4745 | -7/DSF | Core integrity fell below 20% 4747 | -7/DSF | Destroyed by X-57 Shotgunner with Shotgun Last Messages --------------- System Shield destroyed. Hrd. Medium Armor Plating destroyed. System corrupted by crushing effect (+2). System corrupted by crushing effect (+4). Rnf. Ion Engine destroyed. Lgt. Deuterium Engine destroyed. B-48 Gladiator Lgt. Treads severed. Hacking Suite destroyed. System corrupted by crushing effect (+5). Imp. Carbon-fiber Leg destroyed. Critical hit (Smash). Katana destroyed. System corrupted by crushing effect (+4). QUHMINJLZM1E1A8#YIQUC/AWSW:<=#XGX G-47 Trooper destroyed. Titanium Leg destroyed. B-48 Gladiator destroyed. Med. Storage Unit destroyed. Penetrated by Slug. X-57 Shotgunner Hpw. Shotgun severed. Map ----- +----------------------------------------------------+ | ????????????????????????????????? | | ????????????????????????????????? | | ????????????????????????????????? | | ????????????????????????????????? | | ????????????????????????????????? | | ????????????????????????????????? | | ????????????????????????????????? | | ????????????????????????????????? | | ????????????????????????????????? | | ????????????????????????????????? | | ????????????????????????????????? | | ????????????????????????????????? | | ????????????????????????????????? | | ???? ???????????????????????? | | ????? ???????????????????????? | | ???### ##?????????????????????? | | ???#[[ !?????????????????????? | | ???#[[ !?????????????????????? | | ????[[ ! ??????????????#??????? | | ?????# ###############??????? | | !???## ## !!# ## ###????? | | !!!## # !# ## " #????? | | % ^^ "#?????? | | % ^ gg%#??????? | | % ^^gHgx###????? | | ????# # ;; %gp@ #????? | | ?????# !!# ;# gxb###????? | | ???### ### ### ## ###??????? | | ???#!! ????###?###== =#???????? | | ???#!!????????????#== =#???????? | | ???#?!????????????#== =#???????? | | ???### ???????????### ##???????? | | ???#!! ???????????# =#???????? | | ???#!! ??????????# =#???????? | | ????!! ???########## ##???????? | | ?????# ??# #==### ###??????? | | ???### ### #==## ""###????? | | ???# """""#???? | | ???# === ""##"#???? | | ???#!! # #==##"""""#??????? | | ???#!! #########"""""#??????? | | ???#########???????##"####??????? | | ????????????????????#"#?????????? | | ????????????????????#""?????????? | | ????????????????????????????????? | | ????????????????????????????????? | | ????????????????????????????????? | | ????????????????????????????????? | | ????????????????????????????????? | | | +----------------------------------------------------+ Best States ------------- Heat Dissipation 45 Energy Generation 21 Energy Capacity 325 Matter Stores 300 Matter Capacity 300 Sight Range 16 Robot Scan Range 14 Terrain Scan Density 10 Armor Coverage 225 Weapon Shielding 33 Evasion (%) 55 Recoil Reduction 3 Offensive Hacking 20 Defensive Hacking 10 Item Schematics ----------------- None Robot Schematics ------------------ None Fabricated ------------ Nothing Alien Tech Used ----------------- None Achievements -------------- None Challenges ------------ None Game ------ Seed SkeletonExplosiveScrap Manual? 0 Play Time 01:03:12 Cumulative 12.3 hours Start 2024.04.12 @ 21:22:24 End 2024.04.13 @ 14:01:48 Sessions 5 Manual Loads 0 Difficulty Rogue Special Mode None Game No. 14 Rogue 14 Adventurer 0 Explorer 0 Win Type - Total 0 Types 0/0/0/0/0/0/0/0/0 Lore% 13 Gallery% 18 Achievement% 13 Wizard Run 0 Options --------- Layout 2 ASCII 0 Keyboard 0 Movement Mouse Keybinds 0 Fullscreen 1 Font 24/Smallcaps Map View 50x44 Zoom Use 0% Tactical HUD 0 Map Filters NONE Filters NONE Steam 1 RUN: 9b2c2731-44da-4547-a86d-cc65b0511f25